Cogmind - Beta 13 @@@ ROGUE MODE // 2024.05.23 @ 20:37:53 Player: Sunsh1n3 Result: Destroyed by G-47 Trooper with Particle Gun Performance ------------- Evolutions (2) 1000 Regions Visited (4) 800 Robots Destroyed (32) 160 Value Destroyed (916) 916 Prototype IDs (3) 60 Alien Tech Used (0) 0 Bonus (0) 0 TOTAL SCORE: 2936 Bonus ------- None Cogmind --------- Core Integrity 0/550 Matter 7/300 Energy 79/100 System Corruption 0% Temperature Cool (27) Movement Core (1400) Ox27 Location -8/Materials Parts ------- > --- POWER (1) -------- (None) > --- PROPULSION (4) --- (None) > --- UTILITY (4) ------ Huge Storage Unit Visual Processing Unit ECM Suite > --- WEAPON (2) ------- (None) > --- INVENTORY (25) --- Cooled Ion Engine Small Storage Unit Peak State ------------ > --- POWER ------------ Cooled Ion Engine > --- PROPULSION ------- Aluminum Leg Aluminum Leg Aluminum Leg Aluminum Leg > --- UTILITY ---------- Small Storage Unit Visual Processing Unit Recoil Stabilizer Hacking Suite > --- WEAPON ----------- Shotgun Shotgun > --- INVENTORY -------- Cooled Ion Engine Aluminum Leg Improved Heat Sink ECM Suite Particle Gun Missile Launcher [Rating: 21] Favorites ----------- Power Cooled Ion Engine Engine Cooled Ion Engine Power Core Light Nuclear Core Propulsion Aluminum Leg Leg Aluminum Leg Utility Small Storage Unit Device Recoil Stabilizer Storage Small Storage Unit Processor Visual Processing Unit Hackware Hacking Suite Protection Light Armor Plating Weapon Shotgun Energy Gun Particle Gun Ballistic Gun Shotgun Ballistic Cannon Light Cannon Launcher Missile Launcher Build | -11 -10 -9 -9 -8 ------- Run | Yrd Mat Mat Min Mat Slots Evolved 4 | . . 2 . 2 Power . | . . . . . Propulsion 2 | . . 2 . . Utility 2 | . . . . 2 Weapon . | . . . . . Parts Attached 37 | 6 8 11 . 12 Power 5 | 1 3 . . 1 Engine 4 | 1 3 . . . Core 1 | . . . . 1 Reactor . | . . . . . Propulsion 12 | 2 1 8 . 1 Treads . | . . . . . Leg 12 | 2 1 8 . 1 Wheel . | . . . . . Hover . | . . . . . Flight . | . . . . . Utility 9 | 1 1 1 . 6 Device 4 | . 1 1 . 2 Storage 2 | 1 . . . 1 Processor 1 | . . . . 1 Hackware 1 | . . . . 1 Protection 1 | . . . . 1 Artifact . | . . . . . Weapon 11 | 2 3 2 . 4 Energy Gun 1 | . . . . 1 Energy Cannon . | . . . . . Ballistic Gun 7 | 2 2 2 . 1 Ballistic Cannon 2 | . 1 . . 1 Launcher 1 | . . . . 1 Special Weapon . | . . . . . Impact Weapon . | . . . . . Slashing Weapon . | . . . . . Piercing Weapon . | . . . . . Special Melee Weapon . | . . . . . Unidentified Prototypes 1 | . 1 . . . Parts Lost 18 | . . 1 . 17 Power 2 | . . . . 2 Propulsion 6 | . . 1 . 5 Utility 4 | . . . . 4 Weapon 6 | . . . . 6 Highest Loss Streak 6 | . . 1 . 6 To Critical Strikes . | . . . . . Average Slot Usage (%) 87 | . 99 96 100 69 Engine 9 | . 14 11 11 3 Leg 29 | . 28 40 44 17 Device 10 | . 13 11 11 6 Storage 10 | . 14 11 11 9 Processor 3 | . . . . 9 Hackware 3 | . . . . 8 Ballistic Gun 17 | . 23 22 22 7 Ballistic Cannon 1 | . 5 . . 1 Launcher 1 | . . . . 3 Naked Turns . | . . . . . Heaviest Build 95 | 12 16 20 20 95 Greatest Support 40 | 20 20 40 40 40 Greatest Overweight (x) 30 | . . . . 30 Average Overweight (x) . | . . . . 4 Largest Inventory Capacity 25 | 8 8 8 8 25 Average Capacity 13 | 7 8 8 8 24 Most Carried 8 | 5 8 8 8 8 Average Carried 6 | 3 6 7 8 6 Final Capacity 25 | 8 8 8 8 25 Final Carried 8 | 4 8 8 8 2 Class Distribution -------------------- 59% | Mutant 40% | Scavenger-Mutant Dominant Class ---------------- Mutant | -10/Materials Scavenger-Mutant | -9/Materials Scavenger-Mutant | -9/Mines Mutant | -8/Materials Resources | -11 -10 -9 -9 -8 ----------- Run | Yrd Mat Mat Min Mat Matter Collected 761 | 201 166 281 50 63 Remotely . | . . . . . Salvage Created 1118 | . 240 507 66 305 Parts 64 | . 15 33 2 14 Haulers Intercepted . | . . . . . Recyclers Shooed 2 | . 1 . . 1 Parts Field Recycled . | . . . . . Retrieved Matter . | . . . . . Parts Self-Destructed . | . . . . . Prevented . | . . . . . Kills | -11 -10 -9 -9 -8 ------- Run | Yrd Mat Mat Min Mat Combat Hostiles Destroyed 22 | . 6 9 2 5 Guns 16 | . 3 9 2 2 Cannons 3 | . 3 . . . AOE 3 | . . . . 3 Classes Destroyed 8 | . 4 2 1 1 Builder 2 | . . . . 2 Recycler 4 | . 1 2 . 1 Operator 1 | . 1 . . . Watcher 3 | . . 2 . 1 Swarmer 3 | . 3 . . . Grunt 13 | . 3 6 1 3 Duelist 1 | . . . 1 . Sentry 5 | . . 3 . 2 Best Kill Streak 5 | . 4 5 2 5 Combat Bots Only 3 | . 3 3 2 3 Max Kills in Single Turn 3 | . 1 2 1 3 Gunslinging 1 | . . 1 . . Exploded 2 | . . . . 2 Melee . | . . . . . Uniques/NPCs Destroyed . | . . . . . Combat | -11 -10 -9 -9 -8 -------- Run | Yrd Mat Mat Min Mat Hostile Shots Fired 251 | . 43 41 15 152 Missed 76 | . 13 14 2 47 Damage Taken 2666 | . 256 432 249 1729 Core 667 | . 46 42 29 550 Absorbed by Shields . | . . . . . Core Remaining (%) 87 | 100 81 . 82 . Volleys Fired 100 | . 28 30 7 35 Largest 2 | . 2 2 2 2 Hottest 88 | . 55 46 46 88 Shots Fired 174 | . 56 60 14 44 Gun 132 | . 40 60 14 18 Cannon 36 | . 16 . . 20 Launcher 6 | . . . . 6 Special . | . . . . . Kinetic 165 | . 56 60 14 35 Thermal 3 | . . . . 3 Explosive 6 | . . . . 6 Electromagnetic . | . . . . . Robot Hit Streak 14 | . 9 14 7 12 Robot Miss Streak 3 | . 3 3 1 3 Penetration Max . | . . . . . Secondary Targets 2 | . . 1 1 . Max Gunslinging Chain 1 | . . 1 1 . Shots Hit Robots 123 | . 39 40 13 31 Core Hits 68 | . 14 28 5 21 Critical Kills . | . . . . . Critical Parts Destroyed 1 | . . . . 1 Critical Strikes 1 | . . . . 1 Destroy 1 | . . . . 1 Melee Attacks . | . . . . . Impact . | . . . . . Slashing . | . . . . . Piercing . | . . . . . Sneak Attacks . | . . . . . Combat Hostiles . | . . . . . Follow-up Attacks . | . . . . . Damage Inflicted 2491 | . 428 618 207 1238 Guns 1359 | . 274 618 207 260 Cannons 482 | . 154 . . 328 Explosions 650 | . . . . 650 Melee . | . . . . . Ramming . | . . . . . Kinetic 1811 | . 428 618 207 558 Thermal 30 | . . . . 30 Explosive 650 | . . . . 650 Electromagnetic . | . . . . . Impact . | . . . . . Slashing . | . . . . . Piercing . | . . . . . Highest Corruption 5 | . 5 . . . Average Corruption 5 | . 5 . . . Corruption Purged . | . . . . . Corruption Blocked . | . . . . . Overload Shots . | . . . . . Overflow Damage 51 | . . 10 . 41 Projectiles 15 | . . . . 15 Explosions 36 | . . 10 . 26 Melee . | . . . . . Knockbacks 9 | . 5 . . 4 Impact . | . . . . . Kinetic 9 | . 5 . . 4 Secondary . | . . . . . Self-Inflicted Damage 195 | . . 99 . 96 Shots 3 | . . 1 . 2 Rammed . | . . . . . Targets Rammed . | . . . . . Kicked . | . . . . . Crushed . | . . . . . Highest Temperature 109 | . 34 5 . 109 Average Temperature 26 | . 13 2 . 40 Received Heat Transfer 1206 | . 54 204 48 900 Siege Activations . | . . . . . Robots Corrupted . | . . . . . Combat Hostiles . | . . . . . Parts Fried . | . . . . . Impact Corruptions . | . . . . . Robots Melted . | . . . . . Combat Hostiles . | . . . . . Parts Melted . | . . . . . Heat Transferred 74 | . . . . 74 Parts Sabotaged . | . . . . . Parts Stolen . | . . . . . Parts Stripped . | . . . . . Power Chain Reactions . | . . . . . Alert | -11 -10 -9 -9 -8 ------- Run | Yrd Mat Mat Min Mat Peak Influence 374 | . 180 374 144 250 Initial 94 | . . 76 94 55 Average 138 | . 93 206 120 128 Maximum Alert Level 1 | . . 1 . 1 Low Security (%) 78 | 100 100 54 100 84 Level 1 21 | . . 45 . 15 Level 2 . | . . . . . Level 3 . | . . . . . Level 4 . | . . . . . Level 5 . | . . . . . High Security . | . . . . . Max Security . | . . . . . Squads Dispatched 5 | . 1 1 . 3 Investigation 1 | . . 1 . . Extermination . | . . . . . Reinforcement 4 | . 1 . . 3 Assault . | . . . . . Garrison . | . . . . . Intercept . | . . . . . Searches Triggered . | . . . . . Construction Impeded 1 | . . . . 1 Haulers Reinforced . | . . . . . Active Scanning Responses . | . . . . . Cargo Convoy Interrupts . | . . . . . Stealth | -11 -10 -9 -9 -8 --------- Run | Yrd Mat Mat Min Mat Distress Signals 4 | . . 1 . 3 Communications Jammed . | . . . . . Distress Signals . | . . . . . Times Spotted 44 | . 8 14 2 20 Peak Tracking Total 7 | . 4 3 2 7 Tactical Retreats 4 | . 1 . . 3 Traps | -11 -10 -9 -9 -8 ------- Run | Yrd Mat Mat Min Mat Traps Triggered 1 | . . 1 . . Indirectly . | . . . . . Trap Hack Attempts . | . . . . . Triggered . | . . . . . Disarmed . | . . . . . Reprogrammed . | . . . . . Reused . | . . . . . Traps Extracted . | . . . . . Installed . | . . . . . Triggered . | . . . . . Machines | -11 -10 -9 -9 -8 ---------- Run | Yrd Mat Mat Min Mat Machines Disabled 1 | . . 1 . . Max in Single Turn 1 | . . 1 . . Machines Repaired . | . . . . . Machines Dismantled . | . . . . . Machines Sabotaged . | . . . . . Overloaded Fab Kills . | . . . . . Hacking | -11 -10 -9 -9 -8 --------- Run | Yrd Mat Mat Min Mat Machines Accessed 1 | . . 1 . . Terminals 1 | . . 1 . . Fabricators . | . . . . . Repair Stations . | . . . . . Recycling Units . | . . . . . Scanalyzers . | . . . . . Garrison Access . | . . . . . Total Hacks 2 | . . 2 . . Successful 1 | . . 1 . . Failed 1 | . . 1 . . Catastrophic . | . . . . . Database Lockouts . | . . . . . Manual . | . . . . . Terminals 2 | . . 2 . . Fabricators . | . . . . . Repair Stations . | . . . . . Recycling Units . | . . . . . Scanalyzers . | . . . . . Garrison Access . | . . . . . Terminal Hacks 1 | . . 1 . . Prototype ID Bank 1 | . . 1 . . Fabricator Hacks . | . . . . . Repair Station Hacks . | . . . . . Recycling Unit Hacks . | . . . . . Scanalyzer . | . . . . . Garrison Access Hacks . | . . . . . Unauthorized Hacks . | . . . . . Terminals . | . . . . . Fabricators . | . . . . . Repair Stations . | . . . . . Recycling Units . | . . . . . Scanalyzers . | . . . . . Garrison Access . | . . . . . Data Cores Recovered . | . . . . . Used . | . . . . . Hacking Detections . | . . . . . Full Trace Events . | . . . . . Feedback Events . | . . . . . Feedback Blocked . | . . . . . Robot Schematics Acquired . | . . . . . Robots Built . | . . . . . Authchips . | . . . . . Time . | . . . . . Total Robot Build Rating . | . . . . . Part Schematics Acquired . | . . . . . Parts Built . | . . . . . Authchips . | . . . . . Time . | . . . . . Total Part Build Rating . | . . . . . Parts Repaired . | . . . . . Time . | . . . . . Parts Recycled . | . . . . . Recycled Matter . | . . . . . Retrieved Matter . | . . . . . Retrieved Components . | . . . . . Parts Scanalyzed . | . . . . . Part Schematics Acquired . | . . . . . Parts Damaged . | . . . . . Bothacking | -11 -10 -9 -9 -8 ------------ Run | Yrd Mat Mat Min Mat Used RIF Installer . | . . . . . Robots Hacked . | . . . . . Non-combat . | . . . . . Combat . | . . . . . Robot Hacks Applied . | . . . . . Relay Couplers Released . | . . . . . Fabnet Peak Effective % . | . . . . . Robots Rewired . | . . . . . Allies Hacked . | . . . . . Hacks Repelled . | . . . . . Allies | -11 -10 -9 -9 -8 -------- Run | Yrd Mat Mat Min Mat Total Allies . | . . . . . Largest Group . | . . . . . Highest-Rated Group . | . . . . . Highest-Rated Ally . | . . . . . Total Orders . | . . . . . Ally Attacks . | . . . . . Total Damage . | . . . . . Kills . | . . . . . Allies Corrupted . | . . . . . Allies Melted . | . . . . . Intel | -11 -10 -9 -9 -8 ------- Run | Yrd Mat Mat Min Mat Robot Analysis Total . | . . . . . Derelict Logs Recovered . | . . . . . Drone Launches . | . . . . . Drone Recoveries . | . . . . . Exploration | -11 -10 -9 -9 -8 ------------- Run | Yrd Mat Mat Min Mat Turns Passed 1360 | 111 278 487 49 435 Spaces Moved 592 | 87 127 277 21 80 Core 17 | 12 . . . 5 Treads . | . . . . . Legs 575 | 75 127 277 21 75 Wheels . | . . . . . Hover . | . . . . . Flight . | . . . . . Fastest Speed 50 | 50 120 120 120 120 Average Speed 155 | 110 120 120 120 395 Slowest Speed 1550 | 120 120 120 120 1550 Overloaded Moves . | . . . . . Propulsion Burnouts . | . . . . . Robots Hopped . | . . . . . Cave-ins Triggered . | . . . . . Exploration Rate (%) 15 | 4 27 27 8 11 Regions Visited 4 Branch Regions 1 Pre-discovered Areas . | . . . . . Known Exits Taken . | . . . . . Unknown Exits Taken 4 | 1 1 1 1 . Scrap Searched 1 | . . . 1 . Spaces Dug . | . . . . . Terrain Destroyed 101 | . . 30 . 71 Melee . | . . . . . Projectile 2 | . . . . 2 AOE 99 | . . 30 . 69 Terrain Rammed . | . . . . . Walls Destroyed . | . . . . . Machines Disabled . | . . . . . Actions | -11 -10 -9 -9 -8 --------- Run | Yrd Mat Mat Min Mat Total 873 | 102 205 378 31 157 Wait 96 | . 24 43 4 25 Move 588 | 86 126 276 20 80 Hop . | . . . . . Pick Up 34 | 10 11 8 . 5 Fast Attach 2 | . 1 1 . . Attach 20 | 6 1 2 . 11 Detach . | . . . . . Swap 15 | . 6 8 . 1 Drop 18 | . 8 10 . . Fire 100 | . 28 30 7 35 Melee . | . . . . . Ram . | . . . . . Kick . | . . . . . Crush . | . . . . . Escape Stasis . | . . . . . Rewire . | . . . . . Trap . | . . . . . Miscellaneous . | . . . . . Route ------- -11/Scrapyard -10/Materials -9/Materials -9/Mines -8/Materials (discovered 1 exit: [*Sto]) History --------- Turn | Location | Event 9 | -11/Scrapyard | Discovered new exit (range 15) 112 | -11/Scrapyard | Entered Materials 306 | -10/Materials | Build established: Mutant 373 | -10/Materials | Discovered new exit (range 15) 390 | -10/Materials | Entered another Materials area 390 | -9/Materials | Evolved 2 slots: Propulsion x2 866 | -9/Materials | Discovered new exit (range 9) 877 | -9/Materials | Entered Mines 918 | -9/Mines | Discovered new exit (range 5) 926 | -9/Mines | Entered Materials 926 | -8/Materials | Evolved 2 slots: Utility x2 1044 | -8/Materials | Discovered new exit (range 17) 1087 | -8/Materials | Build established: Scavenger-Mutant 1137 | -8/Materials | Lost 6 parts (1p3n2w) 1253 | -8/Materials | Core integrity fell below 50% 1307 | -8/Materials | Lost 5 parts (1n1u3w) 1346 | -8/Materials | Core integrity fell below 20% 1361 | -8/Materials | Destroyed by G-47 Trooper with Particle Gun Last Messages --------------- 01278_ U-05 Engineer lays Concrete. 01280_ K-01 Serf collects debris. 01281_ U-05 Engineer builds a Wall. 01282_ U-05 Engineer lays Concrete. 01290_ Destroyed Particle Gun. 01307_ G-47 Trooper knocked back. 01316_ W-25 Informer sends out distress signal. 01317_ Destroyed Imp. Hover Unit. 01319_ W-25 Informer destroyed. 01324_ K-01 Serf collects debris. 01327_ G-47 Trooper knocked back. 01328_ Lgt. Armor Plating destroyed. 01328_ U-05 Engineer builds a Wall. 01329_ Acquired 11 matter. 01336_ U-05 Engineer builds a Door. 01343_ Lgt. Nuclear Core destroyed. 01347_ Hacking Suite destroyed. 01348_ G-47 Trooper knocked back. 01349_ Assault Cannon destroyed. 01361_ Critical hit (Burn: +37). Map ----- +----------------------------------------------------+ | #???????????????????????????????????????????? | | #???????????????????????????????????????????? | | ????????????????????????????????????????????? | | ????????????????????????????????????????????? | | # #########????????????????????????????????????? | | # ## #?????????# ???????????????????????? | | # ## """ #????????? ??????????????????????? | | # ## """ #????????# ???????????????????????? | | # ## """ #????????# < ???????????????????????? | | # ## ! [########## ???????????????????????? | | # ## ## ## ???????????????????????? | | ###+#+### """ ## ##??????????????????????? | | ## """ ## ##?????????????????????? | | + """ ## %# ?????????????????????? | | ## #% ##????????????????????? | | ###### ## """ ## # #????????????????????? | | # ##????# ## """ ## %# #????????????????????? | | # #?????# ## """ ## #= #????????????????????? | | # #?????# ## # # #????????????????????? | | # #?????# ## """ ## # ?????????????????????? | | # #?????# ## """ ##%%%# #?????????????????????? | | # #?????# ## """ ##% g# #######???????????????? | | # #?????? ## ##% ## #####??????#???????? | | ?????# #####a### =!# *%! # ?????? | | ??? # % g | # != / ??????? | | #????# % % =@# #??????????????? | | """ #?? ; % % % # ###??????????????? | | """ #?? ; w % # ## #????????????????? | | ??? #?? # ##############? ??????????????? | | ??? #????# ????????????????######?????????????? | | ??? ?????# ???????????????????????????????????? | | ????????? ????????????????????????????????????? | | ???????? ?????????????????????????????????????? | | ??????? ?????????????????????????????????????? | | ?????? ??????????????????????????????????????? | | ?????#####???????????????????????????????????????? | | ?????????????????????????????????????????????????? | | ?????????????????????????????????????????????????? | | ?????????????????????????????????????????????????? | | ?????????????????????????????????????????????????? | | ?????????????????????????????????????????????????? | | ?????????????????????????????????????????????????? | | ?????????????????????????????????????????????????? | | ?????????????????????????????????????????????????? | | ?????????????????????????????????????????????????? | | ?????????????????????????????????????????????????? | | ?????????????????????????????????????????????????? | | ?????????????????????????????????????????????????? | | ?????????????????????????????????????????????????? | | ?????????????????????????????????????????????????? | +----------------------------------------------------+ Best States ------------- Heat Dissipation 45 Energy Generation 14 Energy Capacity 280 Matter Stores 293 Matter Capacity 300 Sight Range 18 Terrain Scan Density 10 ECM Strength 1 Armor Coverage 150 Evasion (%) 55 Recoil Reduction 4 Offensive Hacking 10 Item Schematics ----------------- None Robot Schematics ------------------ None Fabricated ------------ Nothing Alien Tech Used ----------------- None Achievements -------------- None Challenges ------------ None Game ------ Seed GravitySlugStick Manual? 0 Play Time 00:14:34 Cumulative 10.7 hours Start 2024.05.23 @ 20:23:51 End 2024.05.23 @ 20:37:53 Sessions 1 Manual Loads 0 Difficulty Rogue Special Mode None Game No. 24 Rogue 24 Adventurer 0 Explorer 0 Win Type - Total 0 Types 0/0/0/0/0/0/0/0/0 Lore% 13 Gallery% 19 Achievement% 14 Wizard Run 0 Options --------- Layout 1 ASCII 0 Keyboard 0 Movement Mouse Keybinds 0 Fullscreen 2 Font 24/Smallcaps Map View 50x35 Zoom Use 0% Tactical HUD 1 Map Filters NONE Filters NONE Steam 1 RUN: d3f726b1-405d-49a5-af03-bcbf30ddfa93